[Event "*** Titled Tuesday Blitz AM"]
[Site "Chess.com"]
[Date "2020.01.07"]
[Round "8"]
[White "Anton_Demchenko"]
[Black "GMHess"]
[Result "0-1"]
[WhiteElo "2959"]
[BlackElo "2747"]
[TimeControl "180+2"]
[EndTime "10:53:36 PST"]
[Termination "GMHess won by resignation"]

1. d4 {[%clk 0:03:01.9]} 1... d6 {[%clk 0:02:53.8]} 2. e4 {[%clk 0:03:01.7]}
2... Nf6 {[%clk 0:02:48.5]} 3. Nc3 {[%clk 0:03:01.2]} 3... c6 {[%clk 0:02:50.1]}
4. f4 {[%clk 0:02:55.4]} 4... Qa5 {[%clk 0:02:45.6]} 5. Qd2 {[%clk 0:02:47.8]}
5... b5 {[%clk 0:02:23.5]} 6. Bd3 {[%clk 0:02:47.4]} 6... e5 {[%clk 0:02:08]} 7.
Nce2 {[%clk 0:02:26.3]} 7... Qxd2+ {[%clk 0:01:57.8]} 8. Bxd2 {[%clk 0:02:27.2]}
8... exd4 {[%clk 0:01:56]} 9. Nxd4 {[%clk 0:02:28]} 9... a6 {[%clk 0:01:57.2]}
10. e5 {[%clk 0:02:05.6]} 10... dxe5 {[%clk 0:01:40.2]} 11. fxe5 {[%clk
0:02:06.8]} 11... Ng4 {[%clk 0:01:41.9]} 12. Ngf3 {[%clk 0:02:08.1]} 12... c5
{[%clk 0:01:36.8]} 13. Be4 {[%clk 0:02:03.8]} 13... Ra7 {[%clk 0:01:37.7]} 14.
Nf5 {[%clk 0:01:54.8]} 14... g6 {[%clk 0:01:25.6]} 15. Ne3 {[%clk 0:01:55.7]}
15... Nxe5 {[%clk 0:01:01.3]} 16. Nxe5 {[%clk 0:01:16]} 16... Re7 {[%clk
0:01:00.9]} 17. Bc3 {[%clk 0:00:30.5]} 17... Bg7 {[%clk 0:00:27.1]} 18. Nd5
{[%clk 0:00:31.2]} 18... Bxe5 {[%clk 0:00:25.6]} 19. Nxe7 {[%clk 0:00:29]} 19...
Bxc3+ {[%clk 0:00:26.3]} 20. bxc3 {[%clk 0:00:30.7]} 20... Kxe7 {[%clk 0:00:28]}
21. O-O-O {[%clk 0:00:31.7]} 21... Be6 {[%clk 0:00:22.9]} 22. Bd5 {[%clk
0:00:30.6]} 22... Nd7 {[%clk 0:00:20.9]} 23. Rhe1 {[%clk 0:00:30.4]} 23... Nb6
{[%clk 0:00:17.8]} 24. c4 {[%clk 0:00:30.6]} 24... bxc4 {[%clk 0:00:14]} 25.
Bxe6 {[%clk 0:00:29.6]} 25... fxe6 {[%clk 0:00:15.9]} 26. Re5 {[%clk 0:00:23.3]}
26... Rc8 {[%clk 0:00:16]} 27. g4 {[%clk 0:00:23.9]} 27... Kf6 {[%clk 0:00:09]}
28. Rde1 {[%clk 0:00:23.7]} 28... Rc6 {[%clk 0:00:10.1]} 29. g5+ {[%clk
0:00:24.8]} 29... Kf7 {[%clk 0:00:08]} 30. R5e4 {[%clk 0:00:26.1]} 30... c3
{[%clk 0:00:06.7]} 31. Rf4+ {[%clk 0:00:21.3]} 31... Ke7 {[%clk 0:00:08]} 32.
Ref1 {[%clk 0:00:22.3]} 32... Nd5 {[%clk 0:00:09.4]} 33. Rf7+ {[%clk 0:00:23.4]}
33... Kd6 {[%clk 0:00:10.8]} 34. Rxh7 {[%clk 0:00:12.8]} 34... Rb6 {[%clk
0:00:11.5]} 35. Ra7 {[%clk 0:00:13.8]} 35... Nb4 {[%clk 0:00:06.7]} 36. a3
{[%clk 0:00:11.3]} 36... Nc6 {[%clk 0:00:07.3]} 37. Rd1+ {[%clk 0:00:09.9]}
37... Ke5 {[%clk 0:00:05.1]} 38. Re1+ {[%clk 0:00:11.2]} 38... Kd6 {[%clk
0:00:03.7]} 39. Rg7 {[%clk 0:00:09.9]} 39... Nd4 {[%clk 0:00:04.5]} 40. Re3
{[%clk 0:00:09.1]} 40... Rb5 {[%clk 0:00:02.8]} 41. Rxg6 {[%clk 0:00:09.1]}
41... Ra5 {[%clk 0:00:04.2]} 42. Rxc3 {[%clk 0:00:05]} 42... Ne2+ {[%clk
0:00:05.5]} 43. Kb2 {[%clk 0:00:06.6]} 43... Nxc3 {[%clk 0:00:07.4]} 44. Kxc3
{[%clk 0:00:08.2]} 44... Rxa3+ {[%clk 0:00:09]} 45. Kb2 {[%clk 0:00:03.3]} 45...
Ra4 {[%clk 0:00:05]} 46. Rh6 {[%clk 0:00:04.2]} 46... Rg4 {[%clk 0:00:04.5]} 47.
h4 {[%clk 0:00:05.2]} 47... Ke5 {[%clk 0:00:04.9]} 48. g6 {[%clk 0:00:06.7]}
48... Kf6 {[%clk 0:00:05]} 49. h5 {[%clk 0:00:08.3]} 49... e5 {[%clk 0:00:06.6]}
50. Rh7 {[%clk 0:00:09.7]} 50... e4 {[%clk 0:00:07.5]} 51. Rf7+ {[%clk
0:00:11.1]} 51... Ke6 {[%clk 0:00:06.4]} 52. Rh7 {[%clk 0:00:08]} 52... e3
{[%clk 0:00:05.2]} 53. Kc3 {[%clk 0:00:08.1]} 53... Rd4 {[%clk 0:00:06.4]} 54.
Rh8 {[%clk 0:00:06.5]} 54... Ke7 {[%clk 0:00:02.9]} 55. Rh7+ {[%clk 0:00:06.1]}
55... Ke6 {[%clk 0:00:03.2]} 56. Rh8 {[%clk 0:00:07.1]} 56... Ke7 {[%clk
0:00:04.8]} 57. g7 {[%clk 0:00:05.8]} 57... e2 {[%clk 0:00:06.1]} 58. Re8+
{[%clk 0:00:07.1]} 58... Kxe8 {[%clk 0:00:05.8]} 59. g8=Q+ {[%clk 0:00:08.7]}
59... Kd7 {[%clk 0:00:04.9]} 60. Qf7+ {[%clk 0:00:07.2]} 60... Kd8 {[%clk
0:00:02.6]} 61. Qf8+ {[%clk 0:00:07.8]} 61... Kd7 {[%clk 0:00:03.1]} 62. Qf5+
{[%clk 0:00:08.4]} 62... Kd6 {[%clk 0:00:02.6]} 63. Qf6+ {[%clk 0:00:08.3]}
63... Kd7 {[%clk 0:00:03.2]} 64. Qf2 {[%clk 0:00:03.5]} 64... Re4 {[%clk
0:00:03.1]} 65. Qe1 {[%clk 0:00:04.5]} 65... Ke6 {[%clk 0:00:03.4]} 66. h6
{[%clk 0:00:05.3]} 66... Kf7 {[%clk 0:00:03.7]} 67. Kd3 {[%clk 0:00:04.8]} 67...
Re6 {[%clk 0:00:02.9]} 68. Kd2 {[%clk 0:00:05.9]} 68... Rd6+ {[%clk 0:00:02.7]}
69. Ke3 {[%clk 0:00:07]} 69... Rxh6 {[%clk 0:00:03.6]} 70. Qf2+ {[%clk
0:00:05.1]} 70... Rf6 {[%clk 0:00:05.1]} 71. Qh4 {[%clk 0:00:05.4]} 71... e1=Q+
{[%clk 0:00:04.7]} 72. Qxe1 {[%clk 0:00:06.1]} 72... Re6+ {[%clk 0:00:06.3]} 73.
Kd2 {[%clk 0:00:07.2]} 73... Rxe1 {[%clk 0:00:08.2]} 74. Kxe1 {[%clk 0:00:09.1]}
74... Ke6 {[%clk 0:00:09.9]} 75. Kd2 {[%clk 0:00:11]} 75... Kd5 {[%clk
0:00:11.8]} 76. Kc3 {[%clk 0:00:12.9]} 76... c4 {[%clk 0:00:10.4]} 77. Kb2
{[%clk 0:00:13.6]} 77... Kd4 {[%clk 0:00:11.5]} 78. Ka3 {[%clk 0:00:14.7]} 78...
Kc3 {[%clk 0:00:12.6]} 0-1

[Event "*** Titled Tuesday Blitz AM"]
[Site "Chess.com"]
[Date "2020.01.07"]
[Round "8"]
[White "Bulldog167"]
[Black "Indianlad"]
[Result "1/2-1/2"]
[WhiteElo "2730"]
[BlackElo "2922"]
[TimeControl "180+2"]
[EndTime "10:53:41 PST"]
[Termination "Game drawn by agreement"]

1. e4 {[%clk 0:03:01.9]} 1... c6 {[%clk 0:02:57.9]} 2. d4 {[%clk 0:03:02.8]}
2... d5 {[%clk 0:02:59.8]} 3. exd5 {[%clk 0:03:04.4]} 3... cxd5 {[%clk 0:03:01]}
4. Bd3 {[%clk 0:03:06]} 4... Nc6 {[%clk 0:03:02.7]} 5. c3 {[%clk 0:03:07.5]}
5... Qc7 {[%clk 0:03:03.1]} 6. Na3 {[%clk 0:03:08.1]} 6... a6 {[%clk 0:03:04]}
7. Nc2 {[%clk 0:03:09.3]} 7... Nf6 {[%clk 0:03:04.9]} 8. h3 {[%clk 0:03:10.5]}
8... g6 {[%clk 0:03:06.1]} 9. Ne2 {[%clk 0:03:09.2]} 9... Bf5 {[%clk 0:03:07.4]}
10. Bxf5 {[%clk 0:03:07.5]} 10... gxf5 {[%clk 0:03:09.3]} 11. Bf4 {[%clk
0:03:08.8]} 11... Qd7 {[%clk 0:03:10.9]} 12. f3 {[%clk 0:03:06.1]} 12... e6
{[%clk 0:03:10.1]} 13. g4 {[%clk 0:02:59.7]} 13... Be7 {[%clk 0:02:53.7]} 14.
gxf5 {[%clk 0:02:51.3]} 14... Nh5 {[%clk 0:02:54.4]} 15. Qd3 {[%clk 0:02:40.1]}
15... Bh4+ {[%clk 0:02:53.8]} 16. Kd1 {[%clk 0:02:36.4]} 16... O-O-O {[%clk
0:02:51.8]} 17. Bh2 {[%clk 0:02:31.5]} 17... Rhe8 {[%clk 0:02:26.3]} 18. Ne3
{[%clk 0:02:25.1]} 18... e5 {[%clk 0:02:27.1]} 19. Kc2 {[%clk 0:02:00.3]} 19...
e4 {[%clk 0:02:16.7]} 20. fxe4 {[%clk 0:02:01.1]} 20... Rxe4 {[%clk 0:02:18.6]}
21. Ng4 {[%clk 0:01:32.4]} 21... Qxf5 {[%clk 0:02:14.4]} 22. Nc1 {[%clk
0:01:11]} 22... Rde8 {[%clk 0:02:14.8]} 23. Ne5 {[%clk 0:01:01.1]} 23... Qf2+
{[%clk 0:01:42.4]} 24. Qd2 {[%clk 0:00:45.1]} 24... Qf5 {[%clk 0:01:37.4]} 25.
Ncd3 {[%clk 0:00:41.9]} 25... Bg5 {[%clk 0:01:38.4]} 26. Qg2 {[%clk 0:00:37.6]}
26... Nxe5 {[%clk 0:01:35.4]} 27. dxe5 {[%clk 0:00:37.1]} 27... Re3 {[%clk
0:01:28.2]} 28. Rad1 {[%clk 0:00:35]} 28... Qe4 {[%clk 0:01:22.6]} 29. Qg4+
{[%clk 0:00:29.8]} 29... Qxg4 {[%clk 0:01:21.3]} 30. hxg4 {[%clk 0:00:30.3]}
30... Re2+ {[%clk 0:01:22.7]} 31. Kb1 {[%clk 0:00:27.8]} 31... Ng7 {[%clk
0:01:24]} 32. Bf4 {[%clk 0:00:26]} 32... Ne6 {[%clk 0:01:23.9]} 33. Bxg5 {[%clk
0:00:23.3]} 33... Nxg5 {[%clk 0:01:25.8]} 34. Rh5 {[%clk 0:00:24.8]} 34... Rg8
{[%clk 0:01:26.8]} 35. Nf4 {[%clk 0:00:24.9]} 35... Rxe5 {[%clk 0:01:27.2]} 36.
Nxd5 {[%clk 0:00:24.3]} 36... Rd8 {[%clk 0:01:17.9]} 37. Nb6+ {[%clk 0:00:24.9]}
37... Kc7 {[%clk 0:01:19.6]} 38. Rxd8 {[%clk 0:00:26.1]} 38... Kxd8 {[%clk
0:01:21.5]} 39. Nc4 {[%clk 0:00:27.6]} 39... Re1+ {[%clk 0:01:21.8]} 40. Kc2
{[%clk 0:00:28.2]} 40... f6 {[%clk 0:01:23.7]} 41. Nd6 {[%clk 0:00:28]} 41... b5
{[%clk 0:01:21.4]} 42. Rh6 {[%clk 0:00:27.9]} 42... Ke7 {[%clk 0:01:17.5]} 43.
Nf5+ {[%clk 0:00:29.2]} 43... Kf7 {[%clk 0:01:18.6]} 44. Nd6+ {[%clk 0:00:28.5]}
44... Ke6 {[%clk 0:01:15.4]} 45. Ne8 {[%clk 0:00:29.3]} 45... Re2+ {[%clk
0:01:11.4]} 46. Kb3 {[%clk 0:00:29.6]} 46... Kf7 {[%clk 0:01:03.8]} 47. Nd6+
{[%clk 0:00:20.2]} 47... Ke7 {[%clk 0:01:05.1]} 48. Nf5+ {[%clk 0:00:20.4]}
48... Kf7 {[%clk 0:01:06.3]} 49. Nd6+ {[%clk 0:00:19.6]} 49... Ke6 {[%clk
0:01:07.8]} 50. Nf5 {[%clk 0:00:21.3]} 50... Re4 {[%clk 0:01:02.3]} 51. Ng7+
{[%clk 0:00:19.4]} 51... Kf7 {[%clk 0:00:58.2]} 52. Nh5 {[%clk 0:00:20.9]} 52...
Re6 {[%clk 0:00:50.4]} 53. Nf4 {[%clk 0:00:22.2]} 53... Rc6 {[%clk 0:00:45.3]}
54. Nh3 {[%clk 0:00:21.5]} 54... Kg7 {[%clk 0:00:44.2]} 55. Rh5 {[%clk
0:00:20.7]} 55... h6 {[%clk 0:00:45.7]} 56. Nxg5 {[%clk 0:00:20.4]} 56... hxg5
{[%clk 0:00:42.6]} 57. Rh1 {[%clk 0:00:19.1]} 57... Rc4 {[%clk 0:00:44]} 58. Rg1
{[%clk 0:00:20.4]} 58... Kg6 {[%clk 0:00:45.6]} 59. Kc2 {[%clk 0:00:21.5]} 59...
f5 {[%clk 0:00:47]} 60. gxf5+ {[%clk 0:00:23.4]} 60... Kxf5 {[%clk 0:00:48.9]}
61. Kd3 {[%clk 0:00:24.3]} 61... g4 {[%clk 0:00:49.2]} 62. b3 {[%clk 0:00:25.7]}
62... Rf4 {[%clk 0:00:50.2]} 63. c4 {[%clk 0:00:27.2]} 63... bxc4+ {[%clk
0:00:49.2]} 64. bxc4 {[%clk 0:00:29.1]} 64... Rf3+ {[%clk 0:00:50.6]} 65. Kd4
{[%clk 0:00:30.6]} 65... Rf2 {[%clk 0:00:50.7]} 66. c5 {[%clk 0:00:29.3]} 66...
Rxa2 {[%clk 0:00:51.8]} 67. Rc1 {[%clk 0:00:29.2]} 67... Kf4 {[%clk 0:00:41.5]}
68. Kd3 {[%clk 0:00:15.4]} 68... Ra3+ {[%clk 0:00:30]} 69. Kd4 {[%clk
0:00:16.5]} 69... Ra2 {[%clk 0:00:25.4]} 70. Kd3 {[%clk 0:00:17.8]} 70... Ra5
{[%clk 0:00:22.3]} 71. c6 {[%clk 0:00:15.8]} 71... Rd5+ {[%clk 0:00:22.6]} 72.
Ke2 {[%clk 0:00:17.3]} 72... Rd8 {[%clk 0:00:23.4]} 73. c7 {[%clk 0:00:18.3]}
73... Rc8 {[%clk 0:00:24.5]} 74. Kf2 {[%clk 0:00:19]} 74... a5 {[%clk
0:00:22.6]} 75. Kg2 {[%clk 0:00:20]} 75... Kg5 {[%clk 0:00:22.8]} 76. Kg3 {[%clk
0:00:20.7]} 76... Kf5 {[%clk 0:00:23.5]} 77. Rc5+ {[%clk 0:00:21.6]} 77... Ke6
{[%clk 0:00:24.6]} 78. Kxg4 {[%clk 0:00:22.8]} 78... a4 {[%clk 0:00:24.9]} 79.
Ra5 {[%clk 0:00:23.5]} 79... Rxc7 {[%clk 0:00:26.4]} 80. Rxa4 {[%clk 0:00:24.7]}
80... Kd5 {[%clk 0:00:27.2]} 81. Ra1 {[%clk 0:00:22.7]} 1/2-1/2

[Event "*** Titled Tuesday Blitz AM"]
[Site "Chess.com"]
[Date "2020.01.07"]
[Round "8"]
[White "Olga_Zhuravleva"]
[Black "PotapovaM"]
[Result "1-0"]
[WhiteElo "2347"]
[BlackElo "2503"]
[TimeControl "180+2"]
[EndTime "10:53:53 PST"]
[Termination "Olga_Zhuravleva won by resignation"]

1. e4 {[%clk 0:03:01.9]} 1... c5 {[%clk 0:02:57.8]} 2. Nf3 {[%clk 0:03:02.5]}
2... d6 {[%clk 0:02:58.9]} 3. d4 {[%clk 0:03:03.2]} 3... cxd4 {[%clk 0:03:00.8]}
4. Nxd4 {[%clk 0:03:04.8]} 4... Nf6 {[%clk 0:03:01]} 5. Nc3 {[%clk 0:03:05.8]}
5... a6 {[%clk 0:03:02.6]} 6. Bd3 {[%clk 0:03:05]} 6... e5 {[%clk 0:03:02.9]} 7.
Nb3 {[%clk 0:03:05.8]} 7... Be7 {[%clk 0:03:03.5]} 8. O-O {[%clk 0:03:06.7]}
8... O-O {[%clk 0:03:04.4]} 9. f4 {[%clk 0:03:07.9]} 9... b5 {[%clk 0:03:02.8]}
10. a3 {[%clk 0:03:08.5]} 10... Nbd7 {[%clk 0:03:00.3]} 11. Kh1 {[%clk
0:03:09.6]} 11... Bb7 {[%clk 0:03:00.9]} 12. Qf3 {[%clk 0:03:08.2]} 12... Rc8
{[%clk 0:02:42.6]} 13. Bd2 {[%clk 0:03:05.9]} 13... exf4 {[%clk 0:02:39]} 14.
Qxf4 {[%clk 0:03:01.6]} 14... Ne5 {[%clk 0:02:37.1]} 15. Rae1 {[%clk 0:02:58.8]}
15... Nc4 {[%clk 0:02:22.8]} 16. Bc1 {[%clk 0:02:24.2]} 16... g6 {[%clk
0:01:49.8]} 17. Nd4 {[%clk 0:02:09.7]} 17... Nh5 {[%clk 0:01:45.4]} 18. Qf3
{[%clk 0:01:55.6]} 18... Ne5 {[%clk 0:01:43.4]} 19. Qh3 {[%clk 0:01:40.3]} 19...
Ng7 {[%clk 0:01:25.4]} 20. Bh6 {[%clk 0:01:36.9]} 20... Qd7 {[%clk 0:01:25]} 21.
Qxd7 {[%clk 0:01:01.6]} 21... Nxd7 {[%clk 0:01:26.9]} 22. Nd5 {[%clk 0:00:55]}
22... Bxd5 {[%clk 0:01:02.8]} 23. exd5 {[%clk 0:00:54.5]} 23... Bf6 {[%clk
0:01:02.2]} 24. Nc6 {[%clk 0:00:50.7]} 24... Kh8 {[%clk 0:01:00]} 25. c3 {[%clk
0:00:43.7]} 25... Nh5 {[%clk 0:00:53.8]} 26. Bxf8 {[%clk 0:00:43.7]} 26... Rxf8
{[%clk 0:00:52.4]} 27. g3 {[%clk 0:00:39.8]} 27... Nc5 {[%clk 0:00:50.9]} 28.
Bc2 {[%clk 0:00:40.1]} 28... Bg7 {[%clk 0:00:51.7]} 29. Kg2 {[%clk 0:00:39.9]}
29... f5 {[%clk 0:00:50.1]} 30. Re7 {[%clk 0:00:38.5]} 30... Nf6 {[%clk
0:00:47.9]} 31. Rfe1 {[%clk 0:00:35.4]} 31... Nxd5 {[%clk 0:00:47.9]} 32. Re8
{[%clk 0:00:36.1]} 32... h5 {[%clk 0:00:41.5]} 33. Rxf8+ {[%clk 0:00:35.5]}
33... Bxf8 {[%clk 0:00:43.4]} 34. Re8 {[%clk 0:00:36.2]} 34... Kg7 {[%clk
0:00:43.5]} 35. Nd8 {[%clk 0:00:31.9]} 35... Be7 {[%clk 0:00:33.2]} 36. Nc6
{[%clk 0:00:23.9]} 36... Kf7 {[%clk 0:00:26.9]} 37. Ra8 {[%clk 0:00:24.6]} 37...
Ke6 {[%clk 0:00:18.7]} 38. b4 {[%clk 0:00:21.2]} 38... Nd7 {[%clk 0:00:15.4]}
39. Nd4+ {[%clk 0:00:21.3]} 39... Ke5 {[%clk 0:00:14.5]} 40. Re8 {[%clk
0:00:20.6]} 40... Kf6 {[%clk 0:00:14.5]} 41. Ra8 {[%clk 0:00:20.6]} 41... Ne3+
{[%clk 0:00:15.4]} 42. Kf3 {[%clk 0:00:20]} 42... Nd5 {[%clk 0:00:14.3]} 43.
Rxa6 {[%clk 0:00:20.4]} 43... Ne5+ {[%clk 0:00:15.9]} 44. Kf2 {[%clk 0:00:19.9]}
44... Nxc3 {[%clk 0:00:14.8]} 45. Nc6 {[%clk 0:00:19.7]} 45... Nc4 {[%clk
0:00:14.5]} 46. Nxe7 {[%clk 0:00:19.9]} 46... Kxe7 {[%clk 0:00:15.7]} 47. Bd3
{[%clk 0:00:20.5]} 47... Ne5 {[%clk 0:00:14.1]} 48. Be2 {[%clk 0:00:20.4]} 48...
d5 {[%clk 0:00:12.1]} 49. Ra7+ {[%clk 0:00:20.1]} 49... Ke6 {[%clk 0:00:11.9]}
50. Ra6+ {[%clk 0:00:21.2]} 50... Ke7 {[%clk 0:00:13.2]} 51. Rb6 {[%clk
0:00:22.4]} 51... Nc4 {[%clk 0:00:13.3]} 52. Bxc4 {[%clk 0:00:23]} 52... dxc4
{[%clk 0:00:12.4]} 53. Rxg6 {[%clk 0:00:23.7]} 53... Nb1 {[%clk 0:00:11.8]} 54.
Ra6 {[%clk 0:00:23.7]} 54... c3 {[%clk 0:00:10.1]} 55. Ke3 {[%clk 0:00:24.1]}
55... c2 {[%clk 0:00:10.7]} 56. Rc6 {[%clk 0:00:24.5]} 56... Nxa3 {[%clk
0:00:12.3]} 57. Kd2 {[%clk 0:00:24.6]} 57... Kd7 {[%clk 0:00:11]} 58. Rc5 {[%clk
0:00:24.1]} 58... Ke6 {[%clk 0:00:10.8]} 59. Rc3 {[%clk 0:00:22.5]} 59... Nb1+
{[%clk 0:00:11.5]} 60. Kxc2 {[%clk 0:00:23.1]} 60... Nxc3 {[%clk 0:00:12.5]} 61.
Kxc3 {[%clk 0:00:24.7]} 61... Ke5 {[%clk 0:00:12]} 62. Kd3 {[%clk 0:00:25.9]}
62... Kd5 {[%clk 0:00:11.9]} 63. h3 {[%clk 0:00:25.3]} 63... Ke5 {[%clk
0:00:09.8]} 64. Ke3 {[%clk 0:00:26.5]} 64... Kd5 {[%clk 0:00:10]} 65. Kf4 {[%clk
0:00:20.2]} 65... Kc4 {[%clk 0:00:11.3]} 66. Kxf5 {[%clk 0:00:21.4]} 66... Kxb4
{[%clk 0:00:12.8]} 67. g4 {[%clk 0:00:22.9]} 67... hxg4 {[%clk 0:00:14.1]} 68.
hxg4 {[%clk 0:00:23.9]} 68... Kc3 {[%clk 0:00:15.5]} 69. g5 {[%clk 0:00:25.2]}
69... b4 {[%clk 0:00:16.9]} 70. g6 {[%clk 0:00:26.8]} 70... b3 {[%clk
0:00:18.2]} 71. g7 {[%clk 0:00:28.2]} 71... b2 {[%clk 0:00:19.5]} 72. g8=Q
{[%clk 0:00:29.5]} 72... Kc2 {[%clk 0:00:20.9]} 73. Qc4+ {[%clk 0:00:29.3]}
73... Kd1 {[%clk 0:00:19.5]} 74. Qb3+ {[%clk 0:00:29.1]} 74... Kc1 {[%clk
0:00:20.5]} 75. Qc3+ {[%clk 0:00:30.2]} 75... Kb1 {[%clk 0:00:21.4]} 76. Ke4
{[%clk 0:00:31.2]} 76... Ka1 {[%clk 0:00:21.1]} 77. Qa3+ {[%clk 0:00:31.7]}
77... Kb1 {[%clk 0:00:21.9]} 78. Kd3 {[%clk 0:00:32.3]} 78... Kc1 {[%clk
0:00:22.9]} 79. Kc3 {[%clk 0:00:32.8]} 79... Kd1 {[%clk 0:00:24.2]} 80. Qxb2
{[%clk 0:00:33.8]} 1-0